bitfinex/quotes_SOLUSD_20260224
["timestamp","ask_amount","ask_price","bid_price","bid_amount"]
[1771942877121,11.76537498,76.42,76.383,0.84798747]
[1771942877321,0.85612147,76.424,76.383,0.84798747]
[1771942877322,13.0855092,76.421,76.383,0.84798747]
[1771942878417,13.08455237,76.426,76.384,13.09174696]
[1771942878613,13.08455237,76.426,76.385,0.84798747]
[1771942878931,0.85612147,76.419,76.385,0.84798747]
[1771942879124,0.85612147,76.409,76.376,0.84798747]
[1771942881016,13.94375627,76.408,76.378,0.84798747]
[1771942881215,0.85612147,76.407,76.378,0.84798747]
[1771942881640,13.0876348,76.408,76.378,0.84798747]
[1771942883236,11.76537498,76.41,76.379,13.09260398]
[1771942883237,11.766266,76.41,76.379,13.09260398]
[1771942883434,11.766266,76.41,76.38,0.84798747]
[1771942883635,0.85612147,76.409,76.38,0.84798747]
[1771942885136,0.79615323,76.399,76.364,0.81665843]
[1771942885321,13.08934788,76.398,76.366,0.81665843]
[1771942885529,0.79615323,76.397,76.366,0.81665843]
[1771942885727,0.79615323,76.389,76.36,13.09577436]
[1771942885924,0.79615323,76.389,76.358,0.81665843]
[1771942886116,0.79615323,76.389,76.351,0.81665843]
[1771942887644,0.79615323,76.387,76.353,0.81665843]
[1771942888737,32.72347678,76.398,76.353,0.81665843]
[1771942889043,13.08797738,76.406,76.353,0.81665843]
[1771942889447,0.79615323,76.417,76.353,0.81665843]
[1771942889627,11.766266,76.41,76.355,0.81665843]
[1771942889824,0.79615323,76.399,76.355,0.81665843]
[1771942892349,0.79615323,76.426,76.357,0.81665843]
[1771942892555,13.08472358,76.425,76.357,0.81665843]
[1771942895058,33.50683714,76.428,76.359,0.81665843]
[1771942895441,0.79615323,76.427,76.359,0.81665843]
[1771942895955,13.08403878,76.429,76.362,0.81665843]
[1771942896253,0.79615323,76.444,76.362,4.51049245]
[1771942896456,0.79615323,76.444,76.367,0.81665843]
[1771942897057,0.79615323,76.444,76.372,0.81665843]
[1771942897240,13.08164253,76.443,76.372,0.81665843]
[1771942897445,0.79615323,76.442,76.372,0.81665843]
[1771942897639,13.08164253,76.443,76.372,0.81665843]
[1771942898255,13.87725612,76.447,76.372,0.81665843]
[1771942899354,13.87725612,76.447,76.377,0.81665843]
[1771942900061,0.79615323,76.446,76.377,0.81665843]
[1771942901250,0.79615323,76.444,76.382,0.81665843]
[1771942905151,0.79615323,76.444,76.384,0.81665843]
[1771942909961,0.79615323,76.444,76.386,0.81665843]
[1771942911151,0.79615323,76.444,76.388,0.81665843]
[1771942912663,0.79615323,76.444,76.39,0.81665843]
[1771942912970,0.79615323,76.442,76.39,0.81665843]
[1771942914853,0.79615323,76.454,76.392,4.51049245]
[1771942915058,0.79615323,76.454,76.395,0.79401036]
[1771942918448,0.79615323,76.454,76.397,0.79401036]
[1771942918651,13.07993146,76.453,76.397,0.79401036]
[1771942918948,0.80025549,76.452,76.397,0.79401036]
[1771942919171,0.80025549,76.449,76.397,0.79401036]
[1771942920472,11.766266,76.45,76.396,111.26236973]
[1771942920473,0.80025549,76.447,76.399,0.79401036]
[1771942923161,0.80025549,76.445,76.401,0.79401036]
[1771942924075,0.80025549,76.439,76.401,0.79401036]
[1771942925073,0.80025549,76.429,76.391,13.09054731]
[1771942925282,0.80025549,76.436,76.391,0.79401036]
[1771942925576,0.80025549,76.435,76.391,0.79401036]
[1771942927668,45.7899419,76.436,76.393,0.79401036]
[1771942927669,0.80025549,76.433,76.393,0.79401036]
[1771942930183,0.80025549,76.431,76.395,0.79401036]
[1771942930573,0.80025549,76.446,76.395,0.79401036]
[1771942930779,0.80025549,76.445,76.395,0.79401036]
[1771942933087,0.80025549,76.445,76.397,0.79401036]
[1771942933597,0.80025549,76.443,76.397,0.79401036]
[1771942936469,0.80025549,76.443,76.398,45.8127176]
[1771942936670,0.80025549,76.443,76.399,0.79401036]
[1771942938190,0.80025549,76.441,76.399,0.79401036]
[1771942938880,0.80025549,76.441,76.401,0.79401036]
[1771942941791,0.80025549,76.441,76.402,45.8103191]
[1771942942089,0.80025549,76.441,76.403,0.79401036]
[1771942942886,0.80025549,76.429,76.395,13.0898619]
[1771942943392,0.80025549,76.429,76.396,0.79401036]
[1771942943775,38.18822725,76.45,76.398,0.79401036]
[1771942944095,0.80025549,76.449,76.398,0.79401036]
[1771942944300,0.80025549,76.448,76.398,0.79401036]
[1771942946093,0.77879885,76.446,76.4,0.78360373]
[1771942947683,0.77879885,76.458,76.4,0.78360373]
[1771942948072,0.77879885,76.456,76.402,0.78360373]
[1771942951395,0.77879885,76.454,76.404,0.78360373]
[1771942952400,13.0795893,76.455,76.403,13.08849128]
[1771942952401,0.77879885,76.449,76.403,13.08849128]
[1771942952578,0.77879885,76.439,76.403,13.08849128]
[1771942953381,0.77879885,76.437,76.398,13.08934788]
[1771942953582,0.77879885,76.437,76.398,45.8127176]
[1771942953887,0.77879885,76.437,76.398,46.59632133]
[1771942954083,0.77879885,76.437,76.399,0.78360373]
[1771942955405,0.77879885,76.435,76.401,0.78360373]
[1771942956886,0.77879885,76.429,76.4,13.08900523]
[1771942957487,13.08420997,76.428,76.39,32.72651727]
[1771942957685,0.77879885,76.427,76.39,32.72651727]
[1771942958287,0.77879885,76.427,76.39,33.510121]
[1771942959695,0.77879885,76.425,76.38,32.73065966]
[1771942959897,0.77879885,76.419,76.381,13.09226116]
[1771942960094,0.77879885,76.419,76.382,0.78360373]
[1771942961306,0.77879885,76.427,76.382,0.78360373]
[1771942961803,0.77879885,76.435,76.384,0.78360373]
[1771942965201,0.77879885,76.433,76.386,0.78360373]
[1771942965910,0.77879885,76.448,76.386,0.78360373]
[1771942968508,0.77879885,76.446,76.388,0.78360373]
[1771942970692,0.77879885,76.444,76.39,0.78360373]
[1771942974311,0.77879885,76.444,76.392,0.78360373]
[1771942975316,0.76425135,76.443,76.392,0.78360373]
[1771942977007,0.76425135,76.441,76.394,0.81424813]
[1771942978622,0.76425135,76.441,76.396,0.81424813]
[1771942978823,0.76425135,76.439,76.396,0.81424813]
[1771942980409,0.76425135,76.468,76.396,0.81424813]
[1771942980625,0.76425135,76.466,76.399,0.81424813]
[1771942980933,0.76425135,76.459,76.399,0.81424813]
[1771942982727,5.4849224,76.46,76.401,0.81424813]
[1771942982728,0.76425135,76.457,76.401,0.81424813]
[1771942985024,45.77796378,76.456,76.402,45.8103191]
[1771942985229,0.76425135,76.449,76.403,0.81424813]
[1771942988027,0.76425135,76.447,76.405,0.81424813]
[1771942990029,0.76425135,76.445,76.407,0.81424813]
[1771942990210,0.76425135,76.445,76.406,13.08797738]
[1771942992233,0.76425135,76.443,76.402,13.0886626]
[1771942993611,0.76425135,76.443,76.398,13.08932284]
[1771942993812,0.76425135,76.439,76.398,13.08932284]
[1771942994425,0.76425135,76.437,76.399,0.81424813]
[1771942995332,0.76425135,76.437,76.393,0.81424813]
[1771942996617,0.76425135,76.435,76.395,0.81424813]
[1771942998924,0.76425135,76.435,76.397,0.81424813]
[1771943000436,0.76425135,76.434,76.399,0.81424813]
[1771943004017,0.76425135,76.433,76.401,0.81424813]
[1771943005922,0.76425135,76.433,76.403,0.77614337]
[1771943006827,0.81108482,76.468,76.403,0.77614337]
[1771943007730,0.81108482,76.459,76.403,0.77614337]
[1771943008040,45.77018138,76.469,76.403,0.77614337]
[1771943008041,0.81108482,76.449,76.403,0.77614337]
[1771943008415,0.81108482,76.447,76.405,0.77614337]
[1771943008740,0.81108482,76.447,76.404,45.80911993]
[1771943008741,5.48202387,76.44,76.404,45.80911993]
[1771943008919,0.81108482,76.439,76.404,45.80911993]
[1771943009519,0.81108482,76.439,76.404,46.5852633]
[1771943011052,0.81108482,76.437,76.405,0.77614337]
[1771943011648,0.81108482,76.452,76.405,0.77614337]
[1771943012030,0.81108482,76.449,76.405,0.77614337]
[1771943013473,0.81108482,76.447,76.407,0.77614337]
[1771943014951,0.81108482,76.447,76.409,0.77614337]
[1771943016745,0.81108482,76.429,76.388,45.81845485]
[1771943017058,0.81108482,76.424,76.388,45.81845485]
[1771943017351,0.81108482,76.419,76.389,0.77614337]
[1771943017960,0.81108482,76.419,76.388,13.09106142]
[1771943018848,0.81108482,76.419,76.389,0.77614337]
[1771943019953,13.08592216,76.418,76.39,13.09071868]
[1771943020143,13.07890503,76.459,76.391,0.77614337]
[1771943020337,13.07719468,76.469,76.394,0.77614337]
[1771943021553,13.07719468,76.469,76.396,0.77614337]
[1771943022240,0.21080601,76.468,76.396,0.77614337]
[1771943023755,0.21018937,76.466,76.398,0.77614337]
[1771943025143,0.20988076,76.459,76.4,0.77614337]
[1771943027457,0.20929316,76.457,76.402,0.77614337]
[1771943029568,13.07941822,76.456,76.403,111.25217594]
[1771943029761,0.20842914,76.455,76.404,0.77614337]
[1771943032175,5.48202387,76.46,76.399,52.35670623]
[1771943032176,13.07976037,76.454,76.405,45.80852038]
[1771943032345,0.20789356,76.453,76.406,0.77614337]
[1771943035457,0.20500898,76.449,76.408,0.7267733]
[1771943037362,0.200903,76.447,76.41,0.7267733]
[1771943038974,0.19688306,76.439,76.409,13.08746351]
[1771943040354,0.19491191,76.443,76.408,0.7267733]
[1771943042571,0.19491191,76.443,76.41,0.7267733]
[1771943042775,0.1891336,76.456,76.41,0.7267733]
[1771943043873,0.18725427,76.453,76.41,0.7267733]
[1771943045988,0.18725427,76.453,76.409,45.8061223]
[1771943045989,0.18356081,76.451,76.412,0.7267733]
[1771943046281,0.18356081,76.449,76.412,0.7267733]
[1771943047266,0.18174612,76.447,76.414,0.7267733]
[1771943049267,0.18174612,76.447,76.416,0.7267733]
[1771943050487,5.48202387,76.46,76.416,0.7267733]
[1771943050488,0.17641011,76.469,76.416,0.7267733]
[1771943050664,0.17467546,76.459,76.416,0.7267733]
[1771943051667,0.17296258,76.449,76.418,0.7267733]
[1771943051981,0.17296258,76.449,76.417,13.0860934]
[1771943052284,0.17296258,76.439,76.417,13.0860934]
[1771943054175,0.16960098,76.438,76.412,13.08684342]
[1771943054373,0.16960098,76.438,76.411,0.7267733]
[1771943054573,0.16960098,76.438,76.397,0.7267733]
[1771943054971,0.16794894,76.429,76.376,0.7267733]
[1771943055167,0.16794894,76.419,76.376,0.7267733]
[1771943056275,0.16630697,76.409,76.378,0.7267733]
[1771943059472,0.16151249,76.408,76.38,0.7267733]
[1771943060096,0.15995399,76.399,76.371,13.09394272]
[1771943060268,0.15995399,76.399,76.372,0.7267733]
[1771943061964,3.69383402,76.42,76.373,13.09363256]
[1771943062165,5.63892603,76.42,76.374,0.7267733]
[1771943062384,3.69383402,76.417,76.374,0.7267733]
[1771943062566,3.85073618,76.417,76.374,0.7267733]
[1771943062765,0.155395,76.416,76.374,0.7267733]
[1771943063497,0.155395,76.415,76.376,0.7267733]
[1771943064186,5.48202387,76.41,76.376,0.7267733]
[1771943064394,0.15244946,76.409,76.376,0.7267733]
[1771943064572,0.15244946,76.399,76.371,0.75603279]
[1771943065793,0.14813134,76.398,76.371,0.75603279]
[1771943066497,0.14813134,76.398,76.373,0.75838767]
[1771943067696,0.14813134,76.398,76.374,13.09346112]
[1771943068476,5.48202387,76.4,76.375,0.75838767]
[1771943069278,5.49220112,76.4,76.375,0.75838767]
[1771943069477,0.14533228,76.404,76.375,0.75838767]
[1771943069681,5.49220112,76.4,76.377,0.75838767]
[1771943073522,0.13861498,76.398,76.377,0.75838767]
[1771943073708,0.13732764,76.389,76.363,0.75838767]
[1771943075912,0.13478396,76.379,76.363,13.09526755]
[1771943076299,0.13478396,76.388,76.363,13.09526755]
[1771943076493,0.13478396,76.388,76.364,0.75838767]
[1771943080417,5.49220112,76.4,76.366,0.75838767]
[1771943081099,0.12868311,76.399,76.366,0.75838767]
[1771943081496,0.12868311,76.398,76.368,0.75838767]
[1771943081991,5.49220112,76.39,76.368,0.75838767]
[1771943082613,0.12750237,76.394,76.37,0.75838767]
[1771943082917,0.12632722,76.389,76.37,0.75838767]
[1771943085221,0.12632722,76.389,76.371,13.09397546]
[1771943085716,5.49220112,76.39,76.372,0.75838767]
[1771943086497,0.12402816,76.394,76.372,0.75838767]
[1771943086498,13.08920777,76.399,76.372,0.75838767]
[1771943086699,13.21101276,76.399,76.372,0.75838767]
[1771943087004,0.12180499,76.398,76.372,0.75838767]
[1771943088503,5.49220112,76.39,76.372,0.75838767]
[1771943088705,0.11961779,76.4,76.373,0.75838767]
[1771943088912,5.49220112,76.39,76.368,13.85283569]
[1771943089097,0.11961779,76.389,76.368,13.85283569]
[1771943089503,0.11961779,76.389,76.369,0.75838767]
[1771943090299,0.11854629,76.414,76.37,13.09414691]
[1771943090505,5.49220112,76.39,76.371,0.75838767]
[1771943090812,5.60968739,76.39,76.371,0.75838767]
[1771943091200,0.11748627,76.39,76.371,0.75838767]
[1771943091529,5.60968739,76.39,76.371,0.75838767]
[1771943092802,5.49220112,76.39,76.372,13.09380401]
[1771943093411,5.49220112,76.39,76.371,0.75838767]
[1771943093724,5.49220112,76.39,76.372,13.09380401]
[1771943098326,5.49220112,76.39,76.373,0.7484964]
[1771943100003,0.1153955,76.392,76.373,0.7484964]
[1771943100327,5.49220112,76.4,76.375,0.7484964]
[1771943100519,0.10752209,76.389,76.371,0.7484964]
[1771943101225,5.49220112,76.38,76.366,0.7484964]
[1771943101531,0.74245373,76.379,76.331,45.85292999]
[1771943101730,0.74245373,76.369,76.331,45.85292999]
[1771943102029,13.83694356,76.368,76.32,0.1]
[1771943102431,0.74245373,76.367,76.32,0.1]
[1771943102630,0.74245373,76.359,76.32,0.1]
[1771943103318,0.74245373,76.359,76.331,0.7484964]
[1771943103830,5.49220112,76.36,76.331,0.7484964]
[1771943104038,0.74245373,76.369,76.331,0.7484964]
[1771943104234,13.8367721,76.369,76.333,0.7484964]
[1771943104534,52.32518545,76.446,76.336,0.7484964]
[1771943104732,0.74245373,76.404,76.336,0.7484964]
[1771943105236,13.08712096,76.411,76.336,0.7484964]
[1771943105237,5.49220112,76.41,76.336,0.7484964]
[1771943105830,13.08586737,76.419,76.336,0.7484964]
[1771943106218,13.08586737,76.419,76.341,0.7484964]
[1771943106840,13.08586737,76.419,76.346,0.7484964]
[1771943107313,0.74245373,76.418,76.351,0.7484964]
[1771943108739,0.74245373,76.425,76.351,0.7484964]
[1771943108918,5.49220112,76.43,76.351,0.7484964]
[1771943109118,6.23465485,76.43,76.351,0.7484964]
[1771943109317,0.74245373,76.428,76.356,0.7484964]
[1771943109735,0.74245373,76.441,76.356,0.7484964]
[1771943110438,13.82469262,76.44,76.356,0.7484964]
[1771943110644,0.74245373,76.439,76.356,0.5337324]
[1771943111015,0.74245373,76.429,76.356,0.5337324]
[1771943111435,0.74245373,76.427,76.36,3.69383402]
[1771943112350,0.74245373,76.409,76.36,3.69383402]
[1771943112525,0.74245373,76.409,76.361,0.7484964]
[1771943113344,0.74245373,76.409,76.363,0.7484964]
[1771943114650,0.74245373,76.407,76.363,0.7484964]
[1771943116142,0.74245373,76.407,76.364,45.83311507]
[1771943116445,0.74245373,76.407,76.365,0.7484964]
[1771943117445,0.74245373,76.399,76.365,0.7484964]
[1771943117645,0.74245373,76.399,76.364,13.09517573]
[1771943117836,0.74245373,76.389,76.343,0.7484964]
[1771943118038,0.74245373,76.379,76.343,0.7484964]
[1771943118946,0.74245373,76.379,76.346,0.7484964]
[1771943119241,13.09148413,76.386,76.346,0.7484964]
[1771943120143,0.74245373,76.385,76.346,0.7484964]
[1771943120933,0.74245373,76.379,76.348,0.7484964]
[1771943121131,5.49220112,76.37,76.341,0.7484964]
[1771943121355,0.74245373,76.369,76.341,0.7484964]
[1771943121535,0.74245373,76.369,76.343,0.7484964]
[1771943123055,0.74245373,76.367,76.343,0.7484964]
[1771943124338,0.73039489,76.373,76.345,0.75218846]
[1771943124532,0.73039489,76.372,76.344,13.0986063]
[1771943124738,0.73039489,76.379,76.345,0.75218846]
[1771943126449,0.70729357,76.386,76.347,0.75418508]
[1771943126659,169.3300002,76.418,76.347,0.75418508]
[1771943126660,0.70729357,76.411,76.347,0.75418508]
[1771943126853,0.70729357,76.409,76.35,0.75418508]
[1771943128258,0.70729357,76.389,76.352,0.75418508]
[1771943128437,0.70729357,76.369,76.337,0.75418508]
[1771943129251,0.70729357,76.369,76.343,32.74688701]
[1771943129459,0.70729357,76.379,76.344,0.75418508]
[1771943130759,0.70729357,76.379,76.346,0.75418508]
[1771943133161,0.70729357,76.379,76.348,0.75418508]
[1771943134944,0.70729357,76.389,76.348,0.75418508]
[1771943135150,0.70729357,76.399,76.35,0.75418508]
[1771943135649,0.70729357,76.409,76.35,0.75418508]
[1771943136961,13.08746351,76.409,76.35,0.75418508]
[1771943137166,0.70729357,76.408,76.35,0.75418508]
[1771943137667,0.70729357,76.408,76.353,0.75418508]
[1771943138549,3.69383402,76.433,76.351,163.71756752]
[1771943138550,0.70729357,76.419,76.355,0.75418508]
[1771943139065,0.70729357,76.419,76.359,0.75418508]
[1771943139767,0.70729357,76.426,76.359,0.75418508]
[1771943139965,0.70729357,76.426,76.369,0.75418508]
[1771943140144,0.70729357,76.439,76.369,0.75418508]
[1771943140463,11.77807118,76.44,76.369,0.75418508]
[1771943140464,0.70729357,76.429,76.369,0.75418508]
[1771943140766,0.70729357,76.429,76.391,0.75418508]
[1771943140960,0.70729357,76.429,76.4,11.75922206]
[1771943141352,0.70729357,76.429,76.401,45.81091869]
[1771943141871,0.70729357,76.429,76.402,0.75418508]
[1771943142972,11.75922206,76.44,76.402,0.75418508]
[1771943143750,11.75922206,76.44,76.411,0.75418508]
[1771943143950,11.75922206,76.44,76.403,45.8097195]
[1771943144152,11.75922206,76.44,76.403,46.56390458]
[1771943144373,11.75922206,76.44,76.404,0.75418508]
[1771943144675,24.84153069,76.44,76.404,0.75418508]
[1771943145052,0.35592692,76.439,76.404,0.75418508]
[1771943145454,0.35592692,76.439,76.411,0.75418508]
[1771943145652,0.35592692,76.447,76.42,11.75922206]
[1771943146367,0.35635198,76.439,76.404,13.08831998]
[1771943146749,0.35676855,76.429,76.404,13.08831998]
[1771943147452,0.35676855,76.439,76.405,0.75418508]
[1771943147651,0.35676855,76.439,76.411,0.75418508]
[1771943148871,0.35759835,76.437,76.412,13.08694969]
[1771943150562,0.35759835,76.437,76.413,0.75418508]
[1771943150956,0.35759835,76.437,76.412,45.80432392]
[1771943150957,0.35759835,76.437,76.414,13.08660716]
[1771943152959,0.35920515,76.436,76.411,13.28712096]
[1771943154077,0.35920515,76.436,76.421,0.2]
[1771943154280,0.35959331,76.434,76.421,0.2]
[1771943155073,0.35959331,76.434,76.431,0.2]
[1771943156265,0.35959331,76.434,76.421,0.2]
[1771943157668,0.35422875,76.449,76.422,13.08523723]
[1771943157868,13.43484458,76.449,76.432,0.13032272]
[1771943158069,0.35422875,76.448,76.432,0.13032272]
[1771943159081,0.35282739,76.446,76.432,0.13032272]
[1771943159985,0.35282739,76.446,76.423,0.72094683]
[1771943160378,0.35282739,76.446,76.421,0.2]
[1771943161264,0.35009039,76.444,76.421,0.2]
[1771943161581,0.35009039,76.444,76.422,13.08523723]
[1771943162977,0.35009039,76.444,76.421,0.2]
[1771943162978,0.35009039,76.444,76.407,13.0877437]
[1771943163173,0.35009039,76.444,76.412,13.08694969]
[1771943163372,0.34740965,76.442,76.412,13.08694969]
[1771943163774,0.34609975,76.464,76.43,11.75922206]
[1771943163988,0.34609975,76.464,76.412,45.80432392]
[1771943163989,13.27875145,76.46,76.441,0.72094683]
[1771943164486,0.2,76.47,76.451,0.72094683]
[1771943164686,0.2,76.47,76.461,0.72094683]
[1771943164982,0.2,76.47,76.451,0.72094683]
[1771943165483,0.2,76.47,76.452,13.08010254]
[1771943165789,0.2,76.47,76.453,0.72094683]
[1771943170972,0.2,76.47,76.453,13.80076173]
[1771943171287,0.2,76.47,76.454,0.72094683]
[1771943171472,0.2,76.47,76.416,3.69383402]
[1771943171473,0.53724652,76.49,76.461,0.72094683]
[1771943171672,13.07411717,76.487,76.47,7.37e-06]
[1771943171872,13.07411717,76.487,76.47,7.33e-06]
[1771943173192,0.69495237,76.489,76.455,13.0795893]
[1771943173388,0.69495237,76.489,76.46,5.47961649]
[1771943173587,0.69495237,76.487,76.45,5.47961649]
[1771943173786,0.69495237,76.487,76.46,5.47961649]
[1771943175095,0.69495237,76.485,76.46,5.47961649]
[1771943175395,0.69495237,76.485,76.46,11.74139867]
[1771943176296,0.69495237,76.485,76.456,0.72094683]
[1771943176484,0.69495237,76.485,76.46,11.74139867]
[1771943176886,0.69495237,76.485,76.461,0.72094683]
[1771943177086,0.69495237,76.485,76.463,0.72094683]
[1771943177285,13.0742881,76.486,76.463,0.72094683]
[1771943177997,0.69495237,76.485,76.46,11.74139867]
[1771943178177,0.69495237,76.485,76.46,12.4623455]
[1771943179683,0.69495237,76.483,76.46,12.4623455]
[1771943180496,0.69495237,76.483,76.46,25.5409095]
[1771943180695,0.69495237,76.483,76.46,12.4623455]
[1771943181401,0.69495237,76.483,76.461,13.79950975]
[1771943181803,0.69495237,76.483,76.462,0.72094683]
[1771943183890,13.07497188,76.482,76.462,0.72094683]
[1771943184499,0.69495237,76.483,76.464,0.71073056]
[1771943184891,13.76980412,76.483,76.464,0.71073056]
[1771943185487,0.69400021,76.482,76.455,13.07944184]
[1771943185689,0.69400021,76.482,76.45,11.74139867]
[1771943185996,0.69400021,76.479,76.443,0.68478951]
[1771943186604,0.69400021,76.477,76.446,0.68478951]
[1771943187095,0.69400021,76.477,76.445,13.08125489]
[1771943187607,13.07599769,76.476,76.45,11.74139867]
[1771943187906,0.69400021,76.475,76.45,11.74139867]
[1771943188902,0.69400021,76.475,76.45,12.42618818]
[1771943190109,3.69383402,76.457,76.371,0.73804178]
[1771943190293,11.74139867,76.41,76.371,0.73804178]
[1771943191017,11.74139867,76.41,76.372,0.73804178]
[1771943191300,11.76861142,76.41,76.372,0.73804178]
[1771943192092,45.8061223,76.409,76.373,13.09363256]
[1771943192298,45.8061223,76.409,76.374,0.73804178]
[1771943193111,13.08746351,76.409,76.374,0.73804178]
[1771943195514,13.08746351,76.409,76.376,0.73804178]
[1771943195916,45.8061223,76.409,76.376,0.73804178]
[1771943198017,13.08746351,76.409,76.378,0.73804178]
[1771943198507,45.8061223,76.409,76.378,0.73804178]
[1771943200898,13.08746351,76.409,76.38,0.73804178]
[1771943201098,32.71517147,76.418,76.381,0.73804178]
[1771943201297,5.49134238,76.41,76.381,0.73804178]
[1771943203615,13.08746351,76.409,76.381,0.73804178]
[1771943203822,5.49134238,76.4,76.381,0.73804178]
[1771943204020,13.08746351,76.409,76.381,0.73804178]
[1771943204604,0.69400021,76.389,76.37,0.1]
[1771943206615,0.69400021,76.389,76.37,0.78478951]
[1771943209022,13.09053597,76.392,76.372,0.68478951]
[1771943209224,0.69400021,76.394,76.372,0.68478951]
[1771943209624,13.09020459,76.393,76.372,0.68478951]
[1771943209815,0.69400021,76.394,76.372,0.68478951]
[1771943210315,13.7840421,76.394,76.372,0.68478951]
[1771943210830,0.69400021,76.393,76.372,0.68478951]
[1771943211132,0.69400021,76.393,76.371,0.68478951]
[1771943212529,13.09037595,76.392,76.371,0.68478951]
[1771943212729,13.78437616,76.392,76.371,0.68478951]
[1771943213033,13.09037595,76.392,76.371,0.68478951]
[1771943214026,0.69400021,76.392,76.371,0.68478951]
[1771943218334,0.71263357,76.39,76.371,0.68478951]
[1771943219322,13.09054731,76.391,76.372,0.73663807]
[1771943219635,0.71263357,76.394,76.372,0.73663807]
[1771943220316,5.49134238,76.39,76.372,0.5366454]
[1771943220517,5.49134238,76.39,76.347,32.74502233]
[1771943220518,0.71263357,76.379,76.33,5.59134238]
[1771943220732,0.71263357,76.369,76.33,5.59134238]
[1771943220937,0.71263357,76.359,76.33,5.59134238]
[1771943221116,0.71263357,76.359,76.331,45.85292999]
[1771943221322,0.71263357,76.359,76.34,5.49134238]
[1771943221622,0.71263357,76.365,76.331,45.85292999]
[1771943222423,0.71263357,76.363,76.334,0.73663807]
[1771943223727,0.71263357,76.359,76.334,0.73663807]
[1771943224230,13.09458163,76.368,76.341,0.73663807]
[1771943224437,0.71263357,76.372,76.341,0.73663807]
[1771943224833,0.71263357,76.369,76.341,0.73663807]
[1771943226021,0.71263357,76.349,76.306,13.10502292]
[1771943226221,0.71263357,76.339,76.306,13.10502292]
[1771943226628,0.71263357,76.337,76.301,13.10598812]
[1771943227623,6.20397595,76.33,76.3,0.1]
[1771943228025,6.20397595,76.33,76.312,0.73663807]
[1771943228733,0.71263357,76.33,76.312,0.73663807]
[1771943229236,13.09928038,76.341,76.32,0.83663807]
[1771943229436,57.84737481,76.4,76.32,0.1]
[1771943229437,0.71263357,76.339,76.32,0.1]
[1771943229744,0.71263357,76.329,76.307,13.10495129]
[1771943230245,0.71263357,76.329,76.305,0.73663807]
[1771943230627,0.71263357,76.319,76.3,1e-08]
[1771943230827,0.71263357,76.309,76.29,0.1]
[1771943231430,5.49134238,76.3,76.29,0.1]
[1771943231639,0.71263357,76.299,76.28,0.1]
[1771943233736,0.71263357,76.299,76.28,0.83663807]
[1771943234848,0.71263357,76.316,76.281,0.73663807]
[1771943235031,13.10358383,76.315,76.283,0.73663807]
[1771943237153,0.71263357,76.315,76.285,0.73663807]
[1771943238637,0.71263357,76.315,76.291,0.73663807]
[1771943238838,0.71263357,76.328,76.301,0.73663807]
[1771943239336,0.71263357,76.326,76.301,0.73663807]
[1771943239544,0.71263357,76.326,76.303,0.73663807]
[1771943240048,13.1015237,76.327,76.303,0.73663807]
[1771943241251,13.81415727,76.327,76.303,0.73663807]
[1771943241948,0.71263357,76.335,76.305,0.73663807]
[1771943242255,32.74511631,76.348,76.321,0.73663807]
[1771943242256,13.09792005,76.348,76.321,0.73663807]
[1771943242630,0.71263357,76.347,76.321,0.73663807]
[1771943242831,0.71263357,76.345,76.321,0.73663807]
[1771943243053,0.71263357,76.345,76.286,3.69383402]
[1771943243054,5.49134238,76.33,76.258,0.73663807]
[1771943243256,0.71263357,76.359,76.32,5.49134238]
[1771943243548,0.71263357,76.359,76.3,5.49134238]
[1771943243549,0.71263357,76.366,76.341,0.73663807]
[1771943243851,0.71263357,76.366,76.252,1.31144101]
[1771943244054,0.71263357,76.339,76.3,5.49134238]
[1771943245058,0.76128686,76.337,76.301,13.10598812]
[1771943245257,0.76128686,76.337,76.31,5.49134238]
[1771943245756,0.76128686,76.337,76.301,13.10598812]
[1771943245959,0.76128686,76.337,76.302,0.69110663]
[1771943247255,0.76128686,76.342,76.313,0.69110663]
[1771943247455,0.76128686,76.342,76.31,5.49134238]
[1771943247757,0.76128686,76.342,76.312,0.69110663]
[1771943248434,13.85903535,76.349,76.32,5.49134238]
[1771943248636,0.76128686,76.355,76.33,6.18244901]
[1771943248831,0.76128686,76.355,76.311,13.10427068]
[1771943248832,0.76128686,76.355,76.323,0.69110663]
[1771943249047,0.76128686,76.349,76.316,0.69110663]
[1771943249643,0.76128686,76.339,76.309,0.69110663]
[1771943249852,0.76128686,76.339,76.301,0.69110663]
[1771943251352,0.76128686,76.337,76.301,0.69110663]
[1771943252656,0.76128686,76.337,76.302,0.69110663]
[1771943252860,0.76128686,76.337,76.301,13.10587324]
[1771943252861,0.76128686,76.337,76.311,0.69110663]
[1771943253748,13.09997904,76.336,76.311,0.69110663]
[1771943254556,13.09927535,76.341,76.313,0.69110663]
[1771943254858,0.76128686,76.34,76.313,0.69110663]
[1771943255742,13.09946423,76.339,76.313,0.69110663]
[1771943256058,13.09946423,76.339,76.31,5.50114722]
[1771943256059,13.09946423,76.339,76.315,0.69110663]
[1771943256668,0.76128686,76.338,76.315,0.69110663]
[1771943257849,13.09980743,76.337,76.315,0.69110663]
[1771943258044,13.09980743,76.337,76.316,13.10341212]
[1771943258239,13.09980743,76.337,76.315,0.69110663]